Cogmind - Beta 10.2 @@@ ROGUE MODE // 2021.06.16 @ 03:54:00 Player: Exp. Geonium Core Result: Self-destructed Performance ------------- Evolutions (1) 500 Regions Visited (3) 600 Robots Destroyed (4) 20 Value Destroyed (40) 40 Prototype IDs (0) 0 Alien Tech Used (0) 0 Bonus (200) 200 TOTAL SCORE: 1360 Bonus ------- Pacifist 200 Cogmind --------- Core Integrity 214/400 Matter 280/300 Energy 100/100 System Corruption 0% Temperature Cool (0) Movement Core (150) Ox2 Location -9/Mines Parts ------- > --- POWER (1) -------- (None) > --- PROPULSION (4) --- (None) > --- UTILITY (2) ------ Medium Storage Unit Weapon Shielding > --- WEAPON (2) ------- (None) > --- INVENTORY (8) ---- Core Shielding Core Shielding Weapon Shielding Heavy Explosive Trap Heavy Explosive Trap Heavy Explosive Trap Heavy Explosive Trap Peak State ------------ > --- POWER ------------ (None) > --- PROPULSION ------- Improved Treads > --- UTILITY ---------- Medium Storage Unit Weapon Shielding > --- WEAPON ----------- (None) > --- INVENTORY -------- Core Shielding Core Shielding Weapon Shielding Heavy Explosive Trap Heavy Explosive Trap Heavy Explosive Trap Heavy Explosive Trap Heavy Explosive Trap [Rating: 6] Favorites ----------- Power None Propulsion Light Treads Treads Light Treads Utility Weapon Shielding Storage Medium Storage Unit Protection Weapon Shielding Weapon None Build | -11 -10 -9 -9 ------- Run | Scr Mat Mat Min Slots Evolved 2 | . . 2 . Power . | . . . . Propulsion 2 | . . 2 . Utility . | . . . . Weapon . | . . . . Parts Attached 7 | 2 1 3 1 Power . | . . . . Engine . | . . . . Core . | . . . . Reactor . | . . . . Propulsion 4 | 2 . 2 . Treads 4 | 2 . 2 . Leg . | . . . . Wheel . | . . . . Hover . | . . . . Flight . | . . . . Utility 3 | . 1 1 1 Device . | . . . . Storage 1 | . . . 1 Processor . | . . . . Hackware . | . . . . Protection 2 | . 1 1 . Artifact . | . . . . Weapon . | . . . . Energy Gun . | . . . . Energy Cannon . | . . . . Ballistic Gun . | . . . . Ballistic Cannon . | . . . . Launcher . | . . . . Special Weapon . | . . . . Impact Weapon . | . . . . Slashing Weapon . | . . . . Piercing Weapon . | . . . . Special Melee Weapon . | . . . . Unidentified Prototypes . | . . . . Parts Lost 4 | . . 2 2 Power . | . . . . Propulsion 4 | . . 2 2 Utility . | . . . . Weapon . | . . . . Highest Loss Streak 1 | . . 1 1 Average Slot Usage (%) 35 | . 39 39 25 Treads 20 | . 28 24 3 Storage 2 | . . . 10 Protection 12 | . 11 14 11 Naked Turns . | . . . . Heaviest Build 9 | . 1 2 9 Greatest Support 60 | 40 40 60 23 Greatest Overweight (x) 2 | . . . 2 Average Overweight (x) . | . . . 1 Largest Inventory Capacity 8 | 4 4 4 8 Average Capacity 4 | 4 4 4 7 Most Carried 8 | . . 3 8 Average Carried 1 | . . . 6 Final Capacity 8 | 4 4 4 8 Final Carried 7 | . . 3 7 Class Distribution -------------------- 100% | Mutant Dominant Class ---------------- Mutant | -10/Materials Mutant | -9/Materials Mutant | -9/Mines Resources | -11 -10 -9 -9 ----------- Run | Scr Mat Mat Min Matter Collected 172 | 123 . 49 . Remotely . | . . . . Salvage Created 49 | . . 49 . Parts 5 | . . 5 . Haulers Intercepted . | . . . . Recyclers Shooed 1 | . . 1 . Parts Field Recycled . | . . . . Retrieved Matter . | . . . . Parts Self-Destructed . | . . . . Prevented . | . . . . Kills | -11 -10 -9 -9 ------- Run | Scr Mat Mat Min Combat Hostiles Destroyed 4 | . . 4 . Melee 4 | . . 4 . Classes Destroyed 1 | . . 1 . Swarmer 4 | . . 4 . Best Kill Streak 4 | . . 4 . Combat Bots Only 4 | . . 4 . Max Kills in Single Turn 1 | . . 1 . Gunslinging . | . . . . Exploded . | . . . . Melee 1 | . . 1 . Uniques/NPCs Destroyed . | . . . . Combat | -11 -10 -9 -9 -------- Run | Scr Mat Mat Min Damage Taken 837 | . 75 566 196 Core 219 | . 33 116 70 Absorbed by Shields . | . . . . Core Remaining (%) 93 | 100 86 . . Volleys Fired . | . . . . Largest . | . . . . Hottest . | . . . . Shots Fired . | . . . . Gun . | . . . . Cannon . | . . . . Launcher . | . . . . Special . | . . . . Kinetic . | . . . . Thermal . | . . . . Explosive . | . . . . Electromagnetic . | . . . . Robot Hit Streak . | . . . . Robot Miss Streak . | . . . . Penetration Max . | . . . . Secondary Targets . | . . . . Shots Hit Robots . | . . . . Core Hits 16 | . 1 15 . Critical Hits . | . . . . Critical Kills . | . . . . Critical Parts Destroyed . | . . . . Melee Attacks . | . . . . Impact . | . . . . Slashing . | . . . . Piercing . | . . . . Sneak Attacks . | . . . . Combat Hostiles . | . . . . Follow-up Attacks . | . . . . Damage Inflicted 26 | . 5 21 . Guns . | . . . . Cannons . | . . . . Explosions . | . . . . Melee . | . . . . Ramming 26 | . 5 21 . Kinetic . | . . . . Thermal . | . . . . Explosive . | . . . . Electromagnetic . | . . . . Impact . | . . . . Slashing . | . . . . Piercing . | . . . . Highest Corruption . | . . . . Average Corruption . | . . . . Corruption Purged . | . . . . Overload Shots . | . . . . Overflow Damage . | . . . . Projectiles . | . . . . Explosions . | . . . . Melee . | . . . . Knockbacks . | . . . . Impact . | . . . . Kinetic . | . . . . Secondary . | . . . . Self-Inflicted Damage . | . . . . Shots . | . . . . Rammed 26 | . 2 24 . Targets Rammed 30 | . 2 28 . Kicked . | . . . . Crushed 4 | . . 4 . Highest Temperature . | . . . . Average Temperature . | . . . . Received Heat Transfer 174 | . 42 69 63 Siege Activations . | . . . . Robots Corrupted . | . . . . Combat Hostiles . | . . . . Parts Fried . | . . . . Impact Corruptions . | . . . . Robots Melted . | . . . . Combat Hostiles . | . . . . Parts Melted . | . . . . Heat Transferred . | . . . . Parts Sabotaged . | . . . . Parts Stolen . | . . . . Parts Stripped . | . . . . Power Chain Reactions . | . . . . Missiles Intercepted . | . . . . Alert | -11 -10 -9 -9 ------- Run | Scr Mat Mat Min Peak Influence 368 | . 31 368 143 Initial 143 | . . 13 143 Average 95 | . 29 155 126 Maximum Alert Level 1 | . . 1 . Low Security (%) 85 | 100 100 59 100 Level 1 14 | . . 40 . Level 2 . | . . . . Level 3 . | . . . . Level 4 . | . . . . Level 5 . | . . . . High Security . | . . . . Max Security . | . . . . Squads Dispatched 3 | . 3 . . Investigation 1 | . 1 . . Extermination . | . . . . Reinforcement 2 | . 2 . . Assault . | . . . . Garrison . | . . . . Intercept . | . . . . Construction Impeded . | . . . . Haulers Reinforced . | . . . . Stealth | -11 -10 -9 -9 --------- Run | Scr Mat Mat Min Distress Signals . | . . . . Communications Jammed . | . . . . Distress Signals . | . . . . Times Spotted 24 | . 5 16 3 Peak Tracking Total 10 | . 3 10 2 Tactical Retreats 5 | . . 4 1 Traps | -11 -10 -9 -9 ------- Run | Scr Mat Mat Min Traps Triggered 1 | . . 1 . Indirectly . | . . . . Trap Hack Attempts . | . . . . Triggered . | . . . . Disarmed . | . . . . Reprogrammed . | . . . . Reused . | . . . . Traps Extracted . | . . . . Installed 1 | . . . 1 Triggered . | . . . . Machines | -11 -10 -9 -9 ---------- Run | Scr Mat Mat Min Machines Disabled . | . . . . Max in Single Turn . | . . . . Machines Sabotaged . | . . . . Garrisons Compromised . | . . . . Overloaded Fab Kills . | . . . . Fab Network Shutdowns . | . . . . Hacking | -11 -10 -9 -9 --------- Run | Scr Mat Mat Min Machines Accessed 2 | . 2 . . Terminals 2 | . 2 . . Fabricators . | . . . . Repair Stations . | . . . . Recycling Units . | . . . . Scanalyzers . | . . . . Garrison Access . | . . . . Total Hacks 6 | . 6 . . Successful 3 | . 3 . . Failed 3 | . 3 . . Catastrophic 2 | . 2 . . Database Lockouts . | . . . . Manual 5 | . 5 . . Terminals 6 | . 6 . . Fabricators . | . . . . Repair Stations . | . . . . Recycling Units . | . . . . Scanalyzers . | . . . . Garrison Access . | . . . . Terminal Hacks 3 | . 3 . . Branch Access Points 1 | . 1 . . Registered Components 1 | . 1 . . Registered Prototypes 1 | . 1 . . Fabricator Hacks . | . . . . Repair Station Hacks . | . . . . Recycling Unit Hacks . | . . . . Scanalyzer . | . . . . Garrison Access Hacks . | . . . . Unauthorized Hacks . | . . . . Terminals . | . . . . Fabricators . | . . . . Repair Stations . | . . . . Recycling Units . | . . . . Scanalyzers . | . . . . Garrison Access . | . . . . Data Cores Recovered . | . . . . Used . | . . . . Hacking Detections 2 | . 2 . . Full Trace Events 1 | . 1 . . Feedback Events . | . . . . Feedback Blocked . | . . . . Robot Schematics Acquired . | . . . . Robots Built . | . . . . Matter . | . . . . Time . | . . . . Total Robot Build Rating . | . . . . Part Schematics Acquired . | . . . . Parts Built . | . . . . Matter . | . . . . Time . | . . . . Total Part Build Rating . | . . . . Parts Repaired . | . . . . Time . | . . . . Parts Recycled . | . . . . Recycled Matter . | . . . . Retrieved Matter . | . . . . Retrieved Components . | . . . . Parts Scanalyzed . | . . . . Part Schematics Acquired . | . . . . Parts Damaged . | . . . . Bothacking | -11 -10 -9 -9 ------------ Run | Scr Mat Mat Min Used RIF Installer . | . . . . Robots Hacked . | . . . . Non-combat . | . . . . Combat . | . . . . Robot Hacks Applied . | . . . . Relay Couplers Released . | . . . . Robots Rewired . | . . . . Allies Hacked . | . . . . Hacks Repelled . | . . . . Allies | -11 -10 -9 -9 -------- Run | Scr Mat Mat Min Total Allies . | . . . . Largest Group . | . . . . Highest-Rated Group . | . . . . Highest-Rated Ally . | . . . . Total Orders . | . . . . Ally Attacks . | . . . . Total Damage . | . . . . Kills . | . . . . Allies Corrupted . | . . . . Allies Melted . | . . . . Intel | -11 -10 -9 -9 ------- Run | Scr Mat Mat Min Robot Analysis Total . | . . . . Derelict Logs Recovered . | . . . . Drone Launches . | . . . . Drone Recoveries . | . . . . Exploration | -11 -10 -9 -9 ------------- Run | Scr Mat Mat Min Turns Passed 579 | 28 211 204 136 Spaces Moved 515 | 24 107 282 102 Core 481 | 12 106 272 91 Treads 34 | 12 1 10 11 Legs . | . . . . Wheels . | . . . . Hover . | . . . . Flight . | . . . . Fastest Speed 50 | 50 50 50 50 Average Speed 69 | 105 51 53 124 Slowest Speed 160 | 160 160 160 160 Overloaded Moves . | . . . . Propulsion Burnouts . | . . . . Robots Hopped . | . . . . Cave-ins Triggered . | . . . . Exploration Rate (%) 22 | 3 24 33 28 Regions Visited 3 Branch Regions 1 Pre-discovered Areas . | . . . . Known Exits Taken . | . . . . Unknown Exits Taken 3 | 1 1 1 . Scrap Searched . | . . . . Spaces Dug . | . . . . Terrain Destroyed . | . . . . Melee . | . . . . Projectile . | . . . . AOE . | . . . . Terrain Rammed . | . . . . Walls Destroyed . | . . . . Machines Disabled . | . . . . Actions | -11 -10 -9 -9 --------- Run | Scr Mat Mat Min Total 711 | 25 261 315 110 Wait 152 | . 152 . . Move 512 | 23 106 281 102 Hop . | . . . . Pick Up 8 | . . 3 5 Fast Attach 6 | 2 1 3 . Attach . | . . . . Detach . | . . . . Swap 1 | . . . 1 Drop 1 | . . . 1 Fire . | . . . . Melee . | . . . . Ram . | . . . . Kick . | . . . . Crush 30 | . 2 28 . Escape Stasis . | . . . . Rewire . | . . . . Trap 1 | . . . 1 Miscellaneous . | . . . . Route ------- -11/Scrapyard -10/Materials (discovered 2 exits: [*Mat] / Min) -9/Materials (discovered 2 exits: [*Min x2]) -9/Mines History --------- Turn | Location | Event 8 | -11/Scrapyard | Discovered new exit (range 15) 29 | -11/Scrapyard | Entered Materials 38 | -10/Materials | Identified exit to Mines 233 | -10/Materials | Discovered new exit (range 14) 240 | -10/Materials | Entered another Materials area 240 | -9/Materials | Evolved 2 slots: Propulsion x2 306 | -9/Materials | Build established: Mutant 374 | -9/Materials | Discovered new exit (range 9) 398 | -9/Materials | Discovered new exit (range 9) 444 | -9/Materials | Entered Mines 454 | -9/Mines | Found a hidden stash of uninstalled traps 472 | -9/Mines | Met a Derelict bent on vengeance 580 | -9/Mines | Self-destructed Last Messages --------------- 00389_ Acquired Core Shielding. 00393_ K-01 Serf collects debris. 00398_ EXIT=FOUND 00416_ Acquired Med. Storage Unit. 00421_ K-01 Serf cleans the Neutrino Reactor. 00437_ Acquired Weapon Shielding. LOCATION=UNKNOWN GOAL=ESCAPE Something is scanning the area. 00450_ Lgt. Treads destroyed. 00454_ A stash of uninstalled traps is collected here! 00459_ Acquired Heavy Explosive Trap. 00477_ YI-UF0: "Whaaaaaaaa!" 00479_ Dropped Heavy Explosive Trap. 00479_ Installed Heavy Explosive Trap. 00480_ YI-UF0 mumbles something. 00483_ Imp. Treads destroyed. 00487_ G-47 Trooper destroyed. 00490_ The unstable cave ceiling collapses. 00528_ K-01 Serf collects debris. Map ----- +----------------------------------------------------+ | | | | | | | | | | | | | | | | | | | | | | | | | | | | | | | | | | | | | | | | | ??????????????????????????????????? | | ??????????????????????????????????? | | ??????????##########??????????????? | | ??????????# #??????????????? | | ???????#### #??????????????? | | ???????# @ """ #??????????????? | | ???????# # """ #??????????????? | | ???????# # """ #??????????????? | | ???????# # #??????????????? | | ???????# # #??????????????? | | ???????# ##########??????????????? | | ???????# #???????????????????????? | | ???????# #???????????????????????? | | ???????# #???????????????????????? | | ???????# #???????????????????????? | | ???????# ###?????????????????????? | | ???????# ###?????? #???????????? | | ??????## ## #??????????? | | ??????# ??????????? | | ??????# ?????????? | | ??????## ### ??????????? | | ???????# #??# ### ??????????? | | ???????# #???## #????????????????? | | ???????# #????? #????????????????? | | ?????### #??????#????????????????? | | ????## #????? ##### ???????????? | | ???## ###### #??????????? | | ???# #???????????????? | | ???# #???????????????? | | ???## #####???????????????? | +----------------------------------------------------+ Best States ------------- Heat Dissipation 28 Energy Generation 5 Energy Capacity 100 Matter Stores 300 Matter Capacity 300 Sight Range 16 Terrain Scan Density 10 Core Shielding 20 Weapon Shielding 33 Evasion (%) 50 Recoil Reduction 3 Item Schematics ----------------- None Robot Schematics ------------------ None Fabricated ------------ Nothing Alien Tech Used ----------------- None Achievements -------------- None Challenges ------------ None Game ------ Seed SalvageRecyclingDevice Manual? 0 Play Time 00:06:43 Cumulative 122.8 hours Start 2021.06.16 @ 03:48:29 End 2021.06.16 @ 03:54:00 Sessions 1 Manual Loads 0 Difficulty Rogue Special Mode None Game No. 177 Rogue 177 Adventurer 0 Explorer 0 Win Type - Total 5 Types 4/0/0/1/0/0/0/0/0 Lore% 49 Gallery% 72 Achievement% 58 Wizard Run 0 Options --------- ASCII 0 Keyboard 0 Movement Numpad Keybinds 0 Fullscreen 1 Font 18/Terminus Map View 76x50 Tactical HUD 1 Map Filters NONE Filters NONE Steam 1 RUN: 54a07422-389c-4b07-a6d1-29442aae5191